Workbook

Sheet many bonds
D1: settlement date
D2: 2008-07-15
A4: CUSIP | B4: MATURITY | C4: CPN | D4: NXT_CPN_DT | E4: ID_BB | F4: ASK | G4: YLD_YTM_MID | H4: YLD_YTM_BID | I4: YLD_YTM_ASK | J4: PX_CLEAN_ASK | K4: PX_DIRTY_ASK | L4: price(ytm_ask) | M4: YTM(ask) | N4: diff price | O4: diff YTM
A5: 9128275G3 | B5: 5/15/2009 | C5: 5.5 | D5: 11/15/2008 | E5: 102.75 | F5: 102.78125 | G5: 2.134 | H5: 2.152 | I5: 2.115 | J5: 102.78125 | K5: 103.6929348 | L5: =bondValue(C5,$D$2,B5,I5/100) -> 103.6957817 | M5: =YTM(K5, C5, $D$2, B5)*100 -> 2.119140625 | N5: =K5-L5 -> -0.002846964771 | O5: =I5-M5 -> -0.004140625
A6: 912828FM7 | B6: 7/31/2008 | C6: 5 | D6: 7/31/2008 | E6: 100.125 | F6: 100.15625 | G6: 1.758 | H6: 2.106 | I6: 1.411 | J6: 100.15625 | K6: 102.4364698 | L6: =bondValue(C6,$D$2,B6,I6/100) -> 102.4368437 | M6: =YTM(K6, C6, $D$2, B6)*100 -> 1.40625 | N6: =K6-L6 -> -0.0003739203867 | O6: =I6-M6 -> 0.00475
A7: 912828FV7 | B7: 10/31/2008 | C7: 4.875 | D7: 10/31/2008 | E7: 100.875 | F7: 100.90625 | G7: 1.806 | H7: 1.859 | I7: 1.753 | J7: 100.90625 | K7: 101.9130435 | L7: =bondValue(C7,$D$2,B7,I7/100) -> 101.9098397 | M7: =YTM(K7, C7, $D$2, B7)*100 -> 1.743164063 | N7: =K7-L7 -> 0.003203820575 | O7: 0.0098359375
A8: 912828GE4 | B8: 1/31/2009 | C8: 4.875 | D8: 7/31/2008 | E8: 101.578125 | F8: 101.609375 | G8: 1.914 | H8: 1.943 | I8: 1.886 | J8: 101.609375 | K8: 103.8325893 | L8: =bondValue(C8,$D$2,B8,I8/100) -> 103.814313 | M8: =YTM(K8, C8, $D$2, B8)*100 -> 1.853027344 | N8: =K8-L8 -> 0.01827624057 | O8: 0.03297265625
A9: 912828FE5 | B9: 5/15/2009 | C9: 4.875 | D9: 11/15/2008 | E9: 102.15625 | F9: 102.1875 | G9: 2.229 | H9: 2.248 | I9: 2.211 | J9: 102.1875 | K9: 102.9955842 | L9: =bondValue(C9,$D$2,B9,I9/100) -> 102.9980534 | M9: =YTM(K9, C9, $D$2, B9)*100 -> 2.214355469 | N9: =K9-L9 -> -0.00246916041 | O9: -0.00335546875
A10: 912828GT1 | B10: 5/31/2009 | C10: 4.875 | D10: 11/30/2008 | E10: 102.265625 | F10: 102.296875 | G10: 2.231 | H10: 2.249 | I10: 2.213 | J10: 102.296875 | K10: 102.8962602 | L10: =bondValue(C10,$D$2,B10,I10/100) -> 102.8911492 | M10: =YTM(K10, C10, $D$2, B10)*100 -> 2.20703125 | N10: =K10-L10 -> 0.005111047888 | O10: 0.00596875
A11: 9128274V1 | B11: 11/15/2008 | C11: 4.75 | D11: 11/15/2008 | E11: 100.921875 | F11: 100.953125 | G11: 1.912 | H11: 1.958 | I11: 1.866 | J11: 100.953125 | K11: 101.7404891 | L11: =bondValue(C11,$D$2,B11,I11/100) -> 101.7362348 | M11: =YTM(K11, C11, $D$2, B11)*100 -> 1.85546875 | N11: =K11-L11 -> 0.004254306141 | O11: 0.01053125
A12: 912828GB0 | B12: 12/31/2008 | C12: 4.75 | D12: 12/31/2008 | E12: 101.28125 | F12: 101.3125 | G12: 1.898 | H12: 1.932 | I12: 1.864 | J12: 101.3125 | K12: 101.5061141 | L12: =bondValue(C12,$D$2,B12,I12/100) -> 101.4993036 | M12: =YTM(K12, C12, $D$2, B12)*100 -> 1.850585938 | N12: =K12-L12 -> 0.006810552301 | O12: 0.0134140625
A13: 912828FT2 | B13: 9/30/2008 | C13: 4.625 | D13: 9/30/2008 | E13: 100.609375 | F13: 100.640625 | G13: 1.622 | H13: 1.695 | I13: 1.549 | J13: 100.640625 | K13: 101.9801059 | L13: =bondValue(C13,$D$2,B13,I13/100) -> 101.9799975 | M13: =YTM(K13, C13, $D$2, B13)*100 -> 1.552734375 | N13: =K13-L13 -> 0.0001083691967 | O13: -0.003734375
A14: 912828FZ8 | B14: 11/30/2008 | C14: 4.625 | D14: 11/30/2008 | E14: 101.0625 | F14: 101.09375 | G14: 1.737 | H14: 1.778 | I14: 1.696 | J14: 101.09375 | K14: 101.6623975 | L14: =bondValue(C14,$D$2,B14,I14/100) -> 101.6612915 | M14: =YTM(K14, C14, $D$2, B14)*100 -> 1.694335938 | N14: =K14-L14 -> 0.001105997455 | O14: 0.0016640625
A15: 912828GL8 | B15: 3/31/2009 | C15: 4.5 | D15: 9/30/2008 | E15: 101.625 | F15: 101.65625 | G15: 2.156 | H15: 2.178 | I15: 2.134 | J15: 101.65625 | K15: 102.9595287 | L15: =bondValue(C15,$D$2,B15,I15/100) -> 102.9672139 | M15: =YTM(K15, C15, $D$2, B15)*100 -> 2.143554688 | N15: =K15-L15 -> -0.007685201985 | O15: -0.0095546875
A16: 912828GP9 | B16: 4/30/2009 | C16: 4.5 | D16: 10/31/2008 | E16: 101.8125 | F16: 101.84375 | G16: 2.16 | H16: 2.18 | I16: 2.14 | J16: 101.84375 | K16: 102.7730978 | L16: =bondValue(C16,$D$2,B16,I16/100) -> 102.7769827 | M16: =YTM(K16, C16, $D$2, B16)*100 -> 2.145996094 | N16: =K16-L16 -> -0.003884886306 | O16: -0.00599609375
A17: 912828EL0 | B17: 11/15/2008 | C17: 4.375 | D17: 11/15/2008 | E17: 100.796875 | F17: 100.828125 | G17: 1.915 | H17: 1.961 | I17: 1.868 | J17: 100.828125 | K17: 101.5533288 | L17: =bondValue(C17,$D$2,B17,I17/100) -> 101.5492266 | M17: =YTM(K17, C17, $D$2, B17)*100 -> 1.85546875 | N17: =K17-L17 -> 0.004102162866 | O17: 0.01253125
A18: 912828CH1 | B18: 5/15/2009 | C18: 3.875 | D18: 11/15/2008 | E18: 101.359375 | F18: 101.390625 | G18: 2.2 | H18: 2.218 | I18: 2.181 | J18: 101.390625 | K18: 102.0329484 | L18: =bondValue(C18,$D$2,B18,I18/100) -> 102.0357502 | M18: =YTM(K18, C18, $D$2, B18)*100 -> 2.185058594 | N18: =K18-L18 -> -0.002801839171 | O18: -0.00405859375
A19: 912828BQ2 | B19: 11/15/2008 | C19: 3.375 | D19: 11/15/2008 | E19: 100.46875 | F19: 100.5 | G19: 1.906 | H19: 1.952 | I19: 1.859 | J19: 100.5 | K19: 101.0594429 | L19: =bondValue(C19,$D$2,B19,I19/100) -> 101.0553862 | M19: =YTM(K19, C19, $D$2, B19)*100 -> 1.845703125 | N19: =K19-L19 -> 0.004056696564 | O19: 0.013296875
A20: 912828BT6 | B20: 12/15/2008 | C20: 3.375 | D20: 12/15/2008 | E20: 100.609375 | F20: 100.640625 | G20: 1.863 | H20: 1.9 | I20: 1.826 | J20: 100.640625 | K20: 100.9172643 | L20: =bondValue(C20,$D$2,B20,I20/100) -> 100.9156403 | M20: =YTM(K20, C20, $D$2, B20)*100 -> 1.821289063 | N20: =K20-L20 -> 0.001624032192 | O20: 0.0047109375
A21: 912828BV1 | B21: 1/15/2009 | C21: 3.25 | D21: 1/15/2009 | E21: 100.671875 | F21: 100.703125 | G21: 1.862 | H21: 1.894 | I21: 1.831 | J21: 100.703125 | K21: 100.703125 | L21: =bondValue(C21,$D$2,B21,I21/100) -> 100.6955207 | M21: =YTM(K21, C21, $D$2, B21)*100 -> 1.81640625 | N21: =K21-L21 -> 0.007604348051 | O21: 0.01459375
A22: 912828BK5 | B22: 9/15/2008 | C22: 3.125 | D22: 9/15/2008 | E22: 100.234375 | F22: 100.265625 | G22: 1.62 | H22: 1.712 | I22: 1.528 | J22: 100.265625 | K22: 101.3016304 | L22: =bondValue(C22,$D$2,B22,I22/100) -> 101.3002349 | M22: =YTM(K22, C22, $D$2, B22)*100 -> 1.5234375 | N22: =K22-L22 -> 0.001395510539 | O22: 0.0045625
A23: 912828BM1 | B23: 10/15/2008 | C23: 3.125 | D23: 10/15/2008 | E23: 100.359375 | F23: 100.390625 | G23: 1.615 | H23: 1.676 | I23: 1.553 | J23: 100.390625 | K23: 101.1676059 | L23: =bondValue(C23,$D$2,B23,I23/100) -> 101.1672493 | M23: =YTM(K23, C23, $D$2, B23)*100 -> 1.552734375 | N23: =K23-L23 -> 0.0003565609526 | O23: 0.000265625
A24: 912828CE8 | B24: 4/15/2009 | C24: 3.125 | D24: 10/15/2008 | E24: 100.6875 | F24: 100.71875 | G24: 2.174 | H24: 2.195 | I24: 2.153 | J24: 100.71875 | K24: 101.4957309 | L24: =bondValue(C24,$D$2,B24,I24/100) -> 101.4969365 | M24: =YTM(K24, C24, $D$2, B24)*100 -> 2.153320312 | N24: =K24-L24 -> -0.001205616248 | O24: -0.0003203125
A25: 912828CC2 | B25: 3/15/2009 | C25: 2.625 | D25: 9/15/2008 | E25: 100.34375 | F25: 100.375 | G25: 2.079 | H25: 2.102 | I25: 2.055 | J25: 100.375 | K25: 101.2452446 | L25: =bondValue(C25,$D$2,B25,I25/100) -> 101.2451871 | M25: =YTM(K25, C25, $D$2, B25)*100 -> 2.055664063 | N25: =K25-L25 -> 5.749769055e-05 | O25: -0.0006640625

Sheet single bond
B2: cpn | C2: maturity | D2: settle
B3: 3.3 | C3: 2015-02-15 | D3: 2008-09-05
A4: price | B4: ytm
A5: 90 | B5: =YTM(A5,$B$3,$D$3,$C$3) -> 0.05172119141
A6: 91 | B6: =YTM(A6,$B$3,$D$3,$C$3) -> 0.04977416992
A7: 92 | B7: 0.0478515625
A8: 93 | B8: 0.04595031738
A9: 94 | B9: 0.04407348633
A10: 95 | B10: 0.04222106934
A11: 96 | B11: 0.04039001465
A12: 97 | B12: 0.03858032227
A13: 98 | B13: 0.03679199219
A14: 99 | B14: 0.03502502441
A15: 100 | B15: 0.03327636719
A16: 101 | B16: 0.03155212402
A17: 102 | B17: 0.02984313965
A18: 103 | B18: 0.02815551758
A19: 104 | B19: 0.02648620605
A20: 105 | B20: 0.02483520508
A21: 106 | B21: 0.02320251465
A22: 107 | B22: 0.02158508301
A23: 108 | B23: 0.01998596191
A24: 109 | B24: 0.01840515137
A25: 110 | B25: 0.01683959961
A26: 111 | B26: 0.0152923584
A27: 112 | B27: 0.01375732422

Sheet Sheet3
